fUSD/lending_fUSD_20250426
["ID","MTS","AMOUNT","RATE_DAILY","PERIOD"]
[359018360,1745650832874,-190.55785929,0.00019685,2]
[359018361,1745650836321,-163.0225219,0.00019685,2]
[359018362,1745650838013,-227.5703451,0.00019685,2]
[359018363,1745650842079,-269.42770857,0.00019685,2]
[359018364,1745650854292,-170.19539122,0.00019685,2]
[359018365,1745650857277,1405.13,0.00018915,2]
[359018366,1745650857300,2000.0,0.00018915,2]
[359018367,1745650857322,2000.0,0.00018915,2]
[359018368,1745650857362,18494.87,0.00018915,2]
[359018369,1745650859355,-187.43587134,0.00019685,2]
[359018370,1745650868306,-197.65509821,0.00019685,2]
[359018371,1745650882998,-161.33106,0.00019685,2]
[359018372,1745650886932,-353.01183635,0.00019685,2]
[359018373,1745650966139,924.3,0.00018981,2]
[359018374,1745651024832,200.0,0.00018923,2]
[359018375,1745651026557,-266.9351475,0.00019684,2]
[359018376,1745651026581,-266.9351475,0.00019684,2]
[359018377,1745651070503,332.79,0.00018923,2]
[359018378,1745651129342,200.0,0.00018923,2]
[359018379,1745651145817,983.339705,0.00018923,2]
[359018380,1745651145841,16.660295,0.00018923,2]
[359018381,1745651206430,470.46,0.00018923,2]
[359018384,1745651349675,169.33,0.00018929,2]
[359018388,1745651431489,-166.66,0.00019692,2]
[359018389,1745651431499,-200.0,0.000197,2]
[359018390,1745651431509,-225.02646071,0.00019708,2]
[359018391,1745651431611,-774.97353929,0.00019708,2]
[359018392,1745651431622,-200.0,0.00019745,2]
[359018393,1745651431632,-840.39138801,0.00019758,2]
[359018398,1745651437545,-2856.8388727,0.00019758,2]
[359018399,1745651437555,-366.4546829,0.00019799,2]
[359018400,1745651437565,-300.0,0.00019799,2]
[359018401,1745651437575,-1200.0,0.00019799,2]
[359018402,1745651437584,-500.0,0.000198,2]
[359018403,1745651437594,-20316.2759,0.000198,2]
[359018404,1745651437604,-2000.0,0.0001984,2]
[359018405,1745651437614,-200.0,0.0001984,2]
[359018406,1745651437625,-150.99,0.00019885,2]
[359018407,1745651437635,-999.99,0.00019885,2]
[359018408,1745651437645,-12817.71518313,0.00019886,2]
[359018409,1745651437655,-167.02059275,0.00019886,2]
[359018410,1745651437664,-2354.76255624,0.00019886,2]
[359018411,1745651437674,-2500.0,0.00019886,2]
[359018412,1745651437684,-12817.71518309,0.00019888,2]
[359018413,1745651437694,-151.0,0.00019888,2]
[359018414,1745651437704,-207.4,0.00019888,2]
[359018415,1745651437714,-668.65185757,0.00019888,2]
[359018416,1745651437724,-12817.71518309,0.00019889,2]
[359018417,1745651437734,-6754.93312908,0.00019889,2]
[359018418,1745651437744,-12817.71518309,0.00019891,2]
[359018419,1745651437755,-12817.71518309,0.00019892,2]
[359018420,1745651437764,-12817.71518309,0.00019894,2]
[359018421,1745651437774,-12817.71518309,0.00019895,2]
[359018422,1745651437783,-12817.71518309,0.00019897,2]
[359018423,1745651437793,-12817.71518309,0.00019898,2]
[359018424,1745651437803,-1000.0,0.000199,2]
[359018425,1745651437814,-1000.0,0.000199,2]
[359018427,1745651437824,-1000.0,0.000199,2]
[359018429,1745651437833,-225.0,0.000199,2]
[359018431,1745651437843,-174.59780577,0.000199,2]
[359018433,1745651437852,-426.63451389,0.000199,2]
[359018435,1745651437861,-261.20350476,0.000199,2]
[359018437,1745651437871,-12817.71518309,0.000199,2]
[359018439,1745651437880,-202.83355767,0.000199,2]
[359018441,1745651437890,-411.49466743,0.000199,2]
[359018443,1745651437899,-2354.76255624,0.000199,2]
[359018445,1745651437909,-500.0,0.00019918,2]
[359018447,1745651437919,-3942.57,0.00019925,2]
[359018449,1745651437929,-179.084,0.00019925,2]
[359018451,1745651437939,-199.09,0.00019963,2]
[359018452,1745651437950,-1000.0,0.00019973,2]
[359018454,1745651437959,-1000.0,0.00019973,2]
[359018456,1745651437969,-1000.0,0.00019973,2]
[359018458,1745651437979,-1000.0,0.00019973,2]
[359018460,1745651437988,-1000.0,0.00019973,2]
[359018462,1745651437999,-1000.0,0.00019973,2]
[359018464,1745651438010,-1000.0,0.00019973,2]
[359018466,1745651438020,-1000.0,0.00019973,2]
[359018469,1745651438030,-157.83682965,0.00019973,2]
[359018470,1745651438040,-1000.0,0.00019973,2]
[359018472,1745651438051,-1000.0,0.00019973,2]
[359018474,1745651438061,-1000.0,0.00019973,2]
[359018476,1745651438070,-500.0,0.00019973,2]
[359018478,1745651438080,-159.98710487,0.00019973,2]
[359018480,1745651438090,-500.0,0.00019973,2]
[359018482,1745651438099,-159.93929853,0.00019973,2]
[359018484,1745651438108,-500.0,0.00019973,2]
[359018486,1745651438118,-359.31890052,0.00019973,2]
[359018488,1745651438129,-182.12115987,0.00019973,2]
[359018490,1745651438138,-500.0,0.00019973,2]
[359018492,1745651438148,-161.3574382,0.00019973,2]
[359018494,1745651438157,-607.62589314,0.00019973,2]
[359018496,1745651438167,-280.82120578,0.00019973,2]
[359018498,1745651438176,-500.0,0.00019973,2]
[359018500,1745651438186,-500.0,0.00019973,2]
[359018502,1745651438196,-500.0,0.00019973,2]
[359018504,1745651438205,-500.0,0.00019973,2]
[359018506,1745651438215,-150.55257584,0.00019973,2]
[359018508,1745651438225,-500.0,0.00019973,2]
[359018510,1745651438234,-150.0,0.00019973,2]
[359018512,1745651438243,-150.0,0.00019973,2]
[359018514,1745651438253,-150.0,0.00019973,2]
[359018516,1745651438262,-207.8330175,0.00019973,2]
[359018518,1745651438271,-500.0,0.00019973,2]
[359018520,1745651438281,-500.0,0.00019973,2]
[359018522,1745651438290,-500.0,0.00019973,2]
[359018523,1745651438300,-500.0,0.00019973,2]
[359018525,1745651438309,-3226.0,0.00019973,2]
[359018527,1745651438320,-500.0,0.00019973,2]
[359018529,1745651438330,-500.0,0.00019973,2]
[359018531,1745651438340,-199.09,0.00019976,2]
[359018533,1745651438349,-199.09,0.00019976,2]
[359018535,1745651438358,-199.09,0.00019976,2]
[359018537,1745651438367,-199.09,0.00019976,2]
[359018539,1745651438376,-199.09,0.00019976,2]
[359018541,1745651438389,-199.09,0.00019976,2]
[359018543,1745651438398,-199.09,0.00019976,2]
[359018545,1745651438407,-199.09,0.00019976,2]
[359018547,1745651438417,-199.09,0.00019976,2]
[359018549,1745651438426,-169.33,0.00019981,2]
[359018551,1745651438436,-500.0,0.00019985,2]
[359018553,1745651438448,-500.0,0.00019985,2]
[359018555,1745651438458,-500.0,0.00019985,2]
[359018557,1745651438467,-500.0,0.00019985,2]
[359018559,1745651438477,-500.0,0.00019985,2]
[359018561,1745651438486,-500.0,0.00019985,2]
[359018563,1745651438495,-500.0,0.00019985,2]
[359018564,1745651438504,-500.0,0.00019985,2]
[359018565,1745651438513,-500.0,0.00019985,2]
[359018566,1745651438523,-500.0,0.00019985,2]
[359018567,1745651438532,-500.0,0.00019985,2]
[359018568,1745651438541,-500.0,0.00019985,2]
[359018569,1745651438551,-639.48479008,0.00019985,2]
[359018570,1745651438560,-500.0,0.00019985,2]
[359018571,1745651438570,-500.0,0.00019985,2]
[359018572,1745651438580,-500.0,0.00019985,2]
[359018573,1745651438589,-500.0,0.00019985,2]
[359018574,1745651438599,-500.0,0.00019985,2]
[359018575,1745651438609,-500.0,0.00019985,2]
[359018576,1745651438618,-166.0163325,0.00019985,2]
[359018577,1745651438628,-269.28587471,0.00019985,2]
[359018578,1745651438637,-500.0,0.00019985,2]
[359018580,1745651438647,-550.0,0.00019985,2]
[359018581,1745651438656,-500.0,0.00019985,2]
[359018583,1745651438666,-500.0,0.00019985,2]
[359018585,1745651438675,-500.0,0.00019985,2]
[359018587,1745651438684,-500.0,0.00019985,2]
[359018588,1745651438694,-500.0,0.00019985,2]
[359018591,1745651438703,-150.0,0.00019985,2]
[359018592,1745651438713,-2725.0501407,0.00019986,2]
[359018594,1745651438722,-75422.2710571,0.00019986,2]
[359018596,1745651438732,-7898.6486028,0.00019986,2]
[359018598,1745651438742,-7768.8847209,0.00019986,2]
[359018600,1745651438752,-192375.1717549,0.00019986,2]
[359018602,1745651438762,-19390.5658033,0.00019986,2]
[359018604,1745651438771,-262.36160997,0.00019986,2]
[359018607,1745651438781,-1000.0,0.00019999,2]
[359018608,1745651438791,-1000.0,0.00019999,2]
[359018611,1745651438801,-1000.0,0.00019999,2]
[359018612,1745651438811,-1000.0,0.00019999,2]
[359018614,1745651438820,-1000.0,0.00019999,2]
[359018617,1745651438831,-1000.0,0.00019999,2]
[359018619,1745651438840,-1000.0,0.00019999,2]
[359018620,1745651438851,-1000.0,0.00019999,2]
[359018622,1745651438860,-1000.0,0.00019999,2]
[359018624,1745651438870,-1000.0,0.00019999,2]
[359018626,1745651438879,-1000.0,0.00019999,2]
[359018628,1745651438889,-1000.0,0.00019999,2]
[359018630,1745651438898,-1000.0,0.00019999,2]
[359018632,1745651438907,-1000.0,0.00019999,2]
[359018634,1745651438917,-1000.0,0.00019999,2]
[359018636,1745651438926,-1000.0,0.00019999,2]
[359018638,1745651438935,-290.0,0.00019999,2]
[359018641,1745651438957,-1000.0,0.00019999,2]
[359018644,1745651438967,-1000.0,0.00019999,2]
[359018646,1745651438977,-1000.0,0.00019999,2]
[359018648,1745651438988,-1000.0,0.00019999,2]
[359018649,1745651438997,-1000.0,0.00019999,2]
[359018652,1745651439007,-500.0,0.00019999,2]
[359018653,1745651439017,-500.0,0.00019999,2]
[359018655,1745651439026,-500.0,0.00019999,2]
[359018657,1745651439036,-300.0,0.00019999,2]
[359018660,1745651439046,-1245.0,0.0002,2]
[359018662,1745651439056,-2087523.68333597,0.0002,2]
[359018664,1745651439071,-1757769.74945778,0.0002,2]
[359018666,1745651439082,-7255.72104804,0.0002,2]
[359018668,1745651439093,-1000.0,0.0002,2]
[359018670,1745651439103,-1000.0,0.0002,2]
[359018672,1745651439113,-1000.0,0.0002,2]
[359018674,1745651439123,-1000.0,0.0002,2]
[359018676,1745651439133,-1000.0,0.0002,2]
[359018678,1745651439142,-1000.0,0.0002,2]
[359018680,1745651439152,-301.12735078,0.0002,2]
[359018683,1745651439162,-1000.0,0.0002,2]
[359018685,1745651439172,-1000.0,0.0002,2]
[359018686,1745651439182,-1000.0,0.0002,2]
[359018688,1745651439192,-1000.0,0.0002,2]
[359018690,1745651439202,-1000.0,0.0002,2]
[359018692,1745651439212,-1000.0,0.0002,2]
[359018694,1745651439222,-1000.0,0.0002,2]
[359018696,1745651439232,-1000.0,0.0002,2]
[359018698,1745651439241,-1000.0,0.0002,2]
[359018700,1745651439251,-1000.0,0.0002,2]
[359018702,1745651439261,-1000.0,0.0002,2]
[359018704,1745651439270,-1000.0,0.0002,2]
[359018706,1745651439280,-1000.0,0.0002,2]
[359018707,1745651439289,-1000.0,0.0002,2]
[359018709,1745651439299,-1000.0,0.0002,2]
[359018711,1745651439308,-1000.0,0.0002,2]
[359018713,1745651439318,-1000.0,0.0002,2]
[359018716,1745651439329,-1000.0,0.0002,2]
[359018717,1745651439338,-1000.0,0.0002,2]
[359018719,1745651439348,-1000.0,0.0002,2]
[359018721,1745651439358,-1000.0,0.0002,2]
[359018723,1745651439368,-1482.07178052,0.0002,2]
[359018725,1745651439378,-1000.0,0.0002,2]
[359018728,1745651439395,-1000.0,0.0002,2]
[359018730,1745651439406,-1000.0,0.0002,2]
[359018732,1745651439416,-1000.0,0.0002,2]
[359018734,1745651439426,-702.36256316,0.0002,2]
[359018736,1745651439438,-41232.86796624,0.0002,2]
[359018738,1745651439451,-3052.01544059,0.0002,2]
[359018740,1745651439461,-1804.6,0.0002,2]
[359018743,1745651439472,-4140.0,0.0002,2]
[359018745,1745651439483,-5650.4371067,0.0002,2]
[359018747,1745651439495,-639927.57228619,0.0002,2]
[359018796,1745651440312,-614.704,0.0002,2]
[359018797,1745651440338,-995.06194621,0.0002,2]
[359018804,1745651440652,-9545.31566453,0.0002,2]
[359018806,1745651444553,-1567.17304762,0.0002,2]
[359018807,1745651444567,-2441.93467861,0.0002,2]
[359018808,1745651444580,-315.24130288,0.0002,2]
[359018902,1745651445966,-658.58954902,0.0002,2]
[359018906,1745651445998,-258.32500331,0.0002,2]
[359018928,1745651446206,-23700.42709423,0.0002,2]
[359018932,1745651446230,-13807.78194511,0.0002,2]
[359018934,1745651446243,-601.92575413,0.0002,2]
[359018938,1745651446275,-551.36941762,0.0002,2]
[359019005,1745651521074,250.0,0.00017,2]
[359019006,1745651522303,300.0,0.00019,2]
[359019007,1745651599863,1048.24,0.00017194,2]
[359019008,1745651839503,155.79,0.00027425,30]
[359019009,1745651901210,2000.0,0.00019081,2]
[359019010,1745651901232,2000.0,0.00019081,2]
[359019011,1745651901255,2000.0,0.00019081,2]
[359019012,1745651901276,2000.0,0.00019081,2]
[359019013,1745651901297,2000.0,0.00019081,2]
[359019014,1745651901319,2000.0,0.00019081,2]
[359019015,1745651901342,2000.0,0.00019081,2]
[359019016,1745651901364,2000.0,0.00019081,2]
[359019017,1745651901389,2000.0,0.00019081,2]
[359019018,1745651901413,2000.0,0.00019081,2]
[359019019,1745651901441,3900.0,0.00019081,2]
[359019020,1745652119493,1179.77,2e-06,2]
[359019021,1745652154384,1000.0,0.00019059,2]
[359019022,1745652196946,4000.0,0.00019059,2]
[359019023,1745652209568,10000.0,0.00037808,60]
[359019024,1745652252637,200.0,0.00019038,2]
[359019025,1745652381846,1425.4,0.00018974,2]
[359019034,1745652514659,2007.0537533,0.00037808,60]
[359019051,1745652589429,205.06,0.00018889,2]
[359019052,1745652621980,250.0,0.00018879,2]
[359019057,1745652631749,-158.5213762,0.00019381,2]
[359019058,1745652631759,-925.60358643,0.00019458,2]
[359019111,1745652637783,-122.63641357,0.00019458,2]
[359019112,1745652637795,-166.7,0.00019474,2]
[359019113,1745652637805,-114.45920254,0.00019481,2]
[359019114,1745652637841,-135.54079746,0.00019481,2]
[359019115,1745652637852,-5000.0,0.00019726,2]
[359019116,1745652637863,-584.12496263,0.00019753,2]
[359019117,1745652637874,-348.1319487,0.00019799,2]
[359019118,1745652637883,-300.0,0.00019799,2]
[359019119,1745652637894,-1200.0,0.00019799,2]
[359019120,1745652637905,-1683.67520869,0.000198,2]
[359019121,1745652637917,-697.43579671,0.000198,2]
[359019122,1745652637942,-1419.50043972,0.000198,2]
[359019123,1745652637954,-2056.72526924,0.000198,2]
[359019124,1745652637964,-5857.33671432,0.00019811,2]
[359019125,1745652637974,-5857.33671432,0.00019822,2]
[359019126,1745652637983,-850.0,0.00019829,2]
[359019127,1745652637993,-36985.00372853,0.0001983,2]
[359019134,1745652638286,-5857.33671432,0.00019833,2]
[359019135,1745652638297,-2000.0,0.0001984,2]
[359019136,1745652638307,-200.0,0.0001984,2]
[359019137,1745652638317,-5857.33671432,0.00019844,2]
[359019138,1745652638326,-5857.33671432,0.00019856,2]
[359019139,1745652638337,-500.0,0.00019863,2]
[359019140,1745652638348,-5857.33671432,0.00019867,2]
[359019141,1745652638357,-730.28498937,0.0001987,2]
[359019142,1745652638368,-5857.33671432,0.00019878,2]
[359019143,1745652638379,-1000.0,0.00019886,2]
[359019144,1745652638390,-2500.0,0.00019886,2]
[359019145,1745652638400,-150.99,0.00019886,2]
[359019146,1745652638410,-3248.06686756,0.00019889,2]
[359019147,1745652638420,-5857.33671432,0.00019889,2]
[359019148,1745652638430,-6754.93312908,0.00019889,2]
[359019149,1745652638439,-283.04,0.0001989,2]
[359019150,1745652638449,-283.04,0.0001989,2]
[359019151,1745652638458,-283.04,0.0001989,2]
[359019152,1745652638469,-74073.62203993,0.000199,2]
[359019153,1745652638479,-167.02059274,0.000199,2]
[359019154,1745652638490,-218.00295858,0.000199,2]
[359019155,1745652638499,-4744.94619545,0.000199,3]
[359019156,1745652638509,-365.68672614,0.000199,2]
[359019157,1745652638520,-150.0,0.000199,2]
[359019158,1745652638529,-150.0,0.000199,2]
[359019159,1745652638541,-455.14,0.000199,2]
[359019160,1745652638552,-150.0,0.000199,2]
[359019161,1745652638564,-150.0,0.000199,2]
[359019162,1745652638574,-799.54,0.000199,2]
[359019163,1745652638584,-150.0,0.000199,2]
[359019164,1745652638593,-455.14,0.000199,2]
[359019165,1745652638604,-799.84,0.000199,2]
[359019166,1745652638615,-225.0,0.000199,2]
[359019167,1745652638625,-450.63,0.000199,2]
[359019168,1745652638635,-150.0,0.000199,2]
[359019169,1745652638645,-150.0,0.000199,2]
[359019170,1745652638656,-1596.86,0.000199,2]
[359019171,1745652638667,-161.91,0.000199,2]
[359019172,1745652638678,-455.14,0.000199,2]
[359019173,1745652638689,-150.0,0.000199,2]
[359019174,1745652638699,-150.0,0.000199,2]
[359019175,1745652638711,-150.0,0.000199,2]
[359019176,1745652638720,-799.84,0.000199,2]
[359019177,1745652638730,-346.24,0.000199,2]
[359019178,1745652638740,-455.14,0.000199,2]
[359019179,1745652638753,-366.17,0.000199,2]
[359019180,1745652638764,-168.92,0.000199,2]
[359019181,1745652638775,-450.63,0.000199,2]
[359019182,1745652638786,-150.0,0.000199,2]
[359019183,1745652638798,-202.83355767,0.000199,2]
[359019184,1745652638809,-150.0,0.000199,2]
[359019185,1745652638821,-150.0,0.000199,2]
[359019186,1745652638831,-310.31,0.000199,2]
[359019187,1745652638841,-799.84,0.000199,2]
[359019188,1745652638851,-150.0,0.000199,2]
[359019189,1745652638861,-23323.56611229,0.000199,2]
[359019190,1745652638870,-261.20350476,0.000199,2]
[359019191,1745652638880,-799.84,0.000199,2]
[359019192,1745652638890,-468.77,0.000199,2]
[359019193,1745652638900,-20014.17774864,0.000199,2]
[359019194,1745652638910,-5857.33671432,0.000199,2]
[359019195,1745652638919,-411.49466743,0.000199,2]
[359019196,1745652638929,-799.84,0.000199,2]
[359019197,1745652638939,-150.0,0.000199,2]
[359019198,1745652638948,-454.99,0.000199,2]
[359019199,1745652638958,-150.0,0.000199,2]
[359019200,1745652638968,-205.06,0.00019939,2]
[359019201,1745652638977,-283.04,0.00019963,2]
[359019202,1745652638987,-500.0,0.00019973,2]
[359019203,1745652638998,-159.98710487,0.00019973,2]
[359019204,1745652639007,-350.55089011,0.00019973,2]
[359019205,1745652639017,-165.77920807,0.00019973,2]
[359019206,1745652639027,-167.08617438,0.00019973,2]
[359019207,1745652639038,-159.93929853,0.00019973,2]
[359019208,1745652639047,-500.0,0.00019973,2]
[359019209,1745652639057,-500.0,0.00019973,2]
[359019210,1745652639067,-500.0,0.00019973,2]
[359019211,1745652639077,-359.31890052,0.00019973,2]
[359019212,1745652639088,-500.0,0.00019973,2]
[359019213,1745652639098,-500.0,0.00019973,2]
[359019214,1745652639108,-161.3574382,0.00019973,2]
[359019215,1745652639118,-500.0,0.00019973,2]
[359019216,1745652639127,-182.12115987,0.00019973,2]
[359019217,1745652639136,-280.82120578,0.00019973,2]
[359019218,1745652639146,-607.62589314,0.00019973,2]
[359019219,1745652639155,-500.0,0.00019973,2]
[359019220,1745652639166,-1000.0,0.00019973,2]
[359019221,1745652639176,-1000.0,0.00019973,2]
[359019222,1745652639186,-3154.056,0.00019973,2]
[359019223,1745652639196,-179.084,0.00019973,2]
[359019224,1745652639205,-207.4,0.00019974,2]
[359019225,1745652639215,-151.0,0.00019974,2]
[359019226,1745652639227,-283.04,0.00019976,2]
[359019227,1745652639236,-283.04,0.00019976,2]
[359019228,1745652639246,-283.04,0.00019976,2]
[359019229,1745652639255,-283.04,0.00019976,2]
[359019230,1745652639266,-283.04,0.00019976,2]
[359019231,1745652639276,-283.04,0.00019976,2]
[359019232,1745652639285,-6269.9843457,0.00019986,2]
[359019233,1745652639297,-133001.2291988,0.00019986,2]
[359019234,1745652639308,-14971.0190928,0.00019986,2]
[359019235,1745652639318,-776.95349225,0.00019988,2]
[359019236,1745652639327,-1000.0,0.0001999,2]
[359019237,1745652639338,-1000.0,0.0001999,2]
[359019238,1745652639348,-1000.0,0.00019999,2]
[359019239,1745652639358,-1000.0,0.00019999,2]
[359019240,1745652639368,-1000.0,0.00019999,2]
[359019241,1745652639379,-1000.0,0.00019999,2]
[359019242,1745652639390,-1000.0,0.00019999,2]
[359019243,1745652639401,-1000.0,0.00019999,2]
[359019244,1745652639412,-1000.0,0.00019999,2]
[359019245,1745652639423,-1000.0,0.00019999,2]
[359019246,1745652639433,-1000.0,0.00019999,2]
[359019247,1745652639442,-1000.0,0.00019999,2]
[359019248,1745652639452,-300.0,0.00019999,2]
[359019249,1745652639463,-266.93514751,0.00019999,2]
[359019250,1745652639473,-151.0,0.00019999,2]
[359019251,1745652639483,-10779.79252576,0.00019999,2]
[359019252,1745652639492,-150.55257584,0.00019999,2]
[359019253,1745652639501,-500.0,0.00019999,2]
[359019254,1745652639512,-150.0,0.00019999,2]
[359019255,1745652639525,-150.0,0.00019999,2]
[359019256,1745652639535,-150.0,0.00019999,2]
[359019257,1745652639546,-207.8330175,0.00019999,2]
[359019258,1745652639557,-500.0,0.00019999,2]
[359019259,1745652639566,-500.0,0.00019999,2]
[359019260,1745652639576,-500.0,0.00019999,2]
[359019261,1745652639587,-500.0,0.00019999,2]
[359019262,1745652639597,-150.0,0.00019999,2]
[359019263,1745652639607,-500.0,0.00019999,2]
[359019264,1745652639617,-500.0,0.00019999,2]
[359019265,1745652639627,-500.0,0.00019999,2]
[359019266,1745652639637,-500.0,0.00019999,2]
[359019267,1745652639647,-500.0,0.00019999,2]
[359019268,1745652639657,-500.0,0.00019999,2]
[359019269,1745652639667,-500.0,0.00019999,2]
[359019270,1745652639677,-500.0,0.00019999,2]
[359019271,1745652639686,-500.0,0.00019999,2]
[359019272,1745652639696,-500.0,0.00019999,2]
[359019273,1745652639706,-500.0,0.00019999,2]
[359019274,1745652639716,-500.0,0.00019999,2]
[359019275,1745652639725,-482.63935306,0.00019999,2]
[359019276,1745652639735,-500.0,0.00019999,2]
[359019277,1745652639744,-500.0,0.00019999,2]
[359019278,1745652639753,-500.0,0.00019999,2]
[359019279,1745652639763,-500.0,0.00019999,2]
[359019280,1745652639772,-456.5452272,0.00019999,2]
[359019281,1745652639781,-500.0,0.00019999,2]
[359019282,1745652639791,-500.0,0.00019999,2]
[359019283,1745652639802,-500.0,0.00019999,2]
[359019284,1745652639813,-195.0,0.00019999,2]
[359019285,1745652639823,-300.0,0.00019999,2]
[359019286,1745652639834,-300.0,0.00019999,2]
[359019287,1745652639843,-165.0,0.00019999,2]
[359019288,1745652639853,-150.0,0.00019999,2]
[359019289,1745652639863,-300.0,0.00019999,2]
[359019290,1745652639874,-300.0,0.00019999,2]
[359019291,1745652639883,-300.0,0.00019999,2]
[359019292,1745652639893,-191.84543702,0.00019999,2]
[359019293,1745652639903,-300.0,0.00019999,2]
[359019294,1745652639914,-300.0,0.00019999,2]
[359019295,1745652639924,-300.0,0.00019999,2]
[359019296,1745652639935,-328.62878477,0.00019999,2]
[359019297,1745652639944,-1241.0,0.0002,2]
[359019298,1745652639954,-532717.16663009,0.0002,2]
[359019299,1745652639963,-2837.85448746,0.0002,2]
[359019300,1745652639973,-1618793.24291365,0.0002,2]
[359019301,1745652640482,-1078018.12248162,0.0002,2]
[359019302,1745652640493,-1000.0,0.0002,2]
[359019303,1745652640502,-1000.0,0.0002,2]
[359019304,1745652640512,-1000.0,0.0002,2]
[359019305,1745652640522,-1000.0,0.0002,2]
[359019306,1745652640531,-1000.0,0.0002,2]
[359019307,1745652640541,-1000.0,0.0002,2]
[359019308,1745652640551,-1000.0,0.0002,2]
[359019309,1745652640560,-1000.0,0.0002,2]
[359019310,1745652640570,-1000.0,0.0002,2]
[359019311,1745652640579,-1000.0,0.0002,2]
[359019312,1745652640589,-1000.0,0.0002,2]
[359019313,1745652640600,-1000.0,0.0002,2]
[359019314,1745652640610,-290.0,0.0002,2]
[359019315,1745652640619,-1000.0,0.0002,2]
[359019316,1745652640629,-1000.0,0.0002,2]
[359019317,1745652640639,-1000.0,0.0002,2]
[359019318,1745652640649,-1000.0,0.0002,2]
[359019320,1745652640658,-1000.0,0.0002,2]
[359019322,1745652640668,-1000.0,0.0002,2]
[359019323,1745652640677,-1000.0,0.0002,2]
[359019325,1745652640687,-1000.0,0.0002,2]
[359019327,1745652640696,-1000.0,0.0002,2]
[359019329,1745652640705,-1000.0,0.0002,2]
[359019331,1745652640714,-1000.0,0.0002,2]
[359019332,1745652640724,-455.14,0.0002,2]
[359019333,1745652640734,-1000.0,0.0002,2]
[359019334,1745652640744,-1000.0,0.0002,2]
[359019335,1745652640754,-1000.0,0.0002,2]
[359019336,1745652640764,-1000.0,0.0002,2]
[359019337,1745652640773,-1000.0,0.0002,2]
[359019338,1745652640783,-1000.0,0.0002,2]
[359019339,1745652640793,-1000.0,0.0002,2]
[359019340,1745652640803,-1000.0,0.0002,2]
[359019341,1745652640812,-1000.0,0.0002,2]
[359019342,1745652640822,-1000.0,0.0002,2]
[359019343,1745652640831,-1000.0,0.0002,2]
[359019344,1745652640841,-1000.0,0.0002,2]
[359019345,1745652640851,-1000.0,0.0002,2]
[359019346,1745652640861,-1000.0,0.0002,2]
[359019347,1745652640871,-1000.0,0.0002,2]
[359019348,1745652640880,-1000.0,0.0002,2]
[359019349,1745652640889,-1000.0,0.0002,2]
[359019350,1745652640899,-1000.0,0.0002,2]
[359019351,1745652640909,-1000.0,0.0002,2]
[359019352,1745652640919,-1000.0,0.0002,2]
[359019353,1745652640929,-1000.0,0.0002,2]
[359019354,1745652640939,-1000.0,0.0002,2]
[359019355,1745652640949,-1000.0,0.0002,2]
[359019356,1745652640959,-1000.0,0.0002,2]
[359019357,1745652640969,-1000.0,0.0002,2]
[359019358,1745652640978,-1000.0,0.0002,2]